Cogmind - Beta 13 @@@ ROGUE MODE // 2024.04.11 @ 15:01:17 Player: gabr Result: Destroyed by S-10 Pest with Light Assault Rifle Performance ------------- Evolutions (2) 1000 Regions Visited (4) 800 Robots Destroyed (46) 230 Value Destroyed (1655) 1655 Prototype IDs (1) 20 Alien Tech Used (0) 0 Bonus (297) 297 TOTAL SCORE: 4002 Bonus ------- High Alert Combat Kills 97 Entered Garrisons 200 Cogmind --------- Core Integrity 0/550 Matter 269/300 Energy 72/100 System Corruption 13% Temperature Hot (220) Movement Core (50) Location -8/Garrison Parts ------- > --- POWER (1) -------- (None) > --- PROPULSION (4) --- (None) > --- UTILITY (4) ------ Advanced Targeting Computer > --- WEAPON (2) ------- (None) > --- INVENTORY (5) ---- Aluminum Leg Core Shielding Heavy Ion Cannon Peak State ------------ > --- POWER ------------ Light Deuterium Engine > --- PROPULSION ------- Improved Carbon-fiber Leg Improved Carbon-fiber Leg Improved Carbon-fiber Leg Improved Carbon-fiber Leg > --- UTILITY ---------- Improved Heat Sink Small Storage Unit Advanced Targeting Computer Medium Armor Plating > --- WEAPON ----------- Particle Gun Heavy Ion Cannon > --- INVENTORY -------- Aluminum Leg Aluminum Leg Aluminum Leg Core Shielding Small Laser Particle Gun Light EM Pulse Cannon Light Assault Rifle [Rating: 35] Favorites ----------- Power Light Deuterium Engine Engine Light Deuterium Engine Power Core Light Nuclear Core Propulsion Aluminum Leg Leg Aluminum Leg Utility Small Storage Unit Device Heat Sink Storage Small Storage Unit Processor Advanced Targeting Computer Protection Medium Armor Plating Weapon Small Laser Energy Gun Small Laser Energy Cannon Heavy Ion Cannon Ballistic Gun Light Assault Rifle Build | -11 -10 -9 -8 -8 ------- Run | Yrd Mat Mat Mat Gar Slots Evolved 4 | . . 2 2 . Power . | . . . . . Propulsion 2 | . . 2 . . Utility 2 | . . . 2 . Weapon . | . . . . . Parts Attached 54 | 6 8 10 7 23 Power 6 | 1 1 2 . 2 Engine 4 | 1 1 2 . . Core 2 | . . . . 2 Reactor . | . . . . . Propulsion 20 | 2 3 5 4 6 Treads . | . . . . . Leg 20 | 2 3 5 4 6 Wheel . | . . . . . Hover . | . . . . . Flight . | . . . . . Utility 11 | 1 1 1 3 5 Device 5 | . 1 1 . 3 Storage 1 | 1 . . . . Processor 1 | . . . 1 . Hackware . | . . . . . Protection 4 | . . . 2 2 Artifact . | . . . . . Weapon 17 | 2 3 2 . 10 Energy Gun 14 | 2 2 2 . 8 Energy Cannon 2 | . . . . 2 Ballistic Gun 1 | . 1 . . . Ballistic Cannon . | . . . . . Launcher . | . . . . . Special Weapon . | . . . . . Impact Weapon . | . . . . . Slashing Weapon . | . . . . . Piercing Weapon . | . . . . . Special Melee Weapon . | . . . . . Unidentified Prototypes 1 | . . 1 . . Corrupted Parts 2 | . . . . 2 System Corruption 7 | . . . . 7 Parts Lost 23 | . . 4 . 19 Power 3 | . . 1 . 2 Propulsion 9 | . . 2 . 7 Utility 6 | . . 1 . 5 Weapon 5 | . . . . 5 Highest Loss Streak 11 | . . 2 . 11 To Critical Strikes 1 | . . . . 1 Average Slot Usage (%) 95 | . 98 91 100 95 Engine 8 | . 13 10 9 5 Core 1 | . . . . 2 Leg 34 | . 27 40 36 35 Device 8 | . 13 6 9 7 Storage 10 | . 14 11 9 8 Processor 4 | . . . 4 9 Protection 5 | . . . 13 8 Energy Gun 19 | . 20 22 18 17 Ballistic Gun 1 | . 7 . . . Naked Turns . | . . . . . Heaviest Build 29 | 10 11 17 25 29 Greatest Support 72 | 20 20 40 72 72 Greatest Overweight (x) 1 | 1 . . . . Average Overweight (x) . | . . . . . Largest Inventory Capacity 8 | 8 8 8 8 8 Average Capacity 7 | 6 8 8 8 7 Most Carried 8 | 2 7 8 8 8 Average Carried 6 | 1 3 7 7 7 Final Capacity 8 | 8 8 8 8 5 Final Carried 8 | 2 7 6 8 3 Class Distribution -------------------- 58% | Mutant 41% | Scavenger-Mutant Dominant Class ---------------- Mutant | -10/Materials Scavenger-Mutant | -9/Materials Mutant | -8/Materials Mutant | -8/Garrison Resources | -11 -10 -9 -8 -8 ----------- Run | Yrd Mat Mat Mat Gar Matter Collected 808 | 201 146 48 . 413 Remotely . | . . . . . Salvage Created 1434 | . 231 341 . 862 Parts 80 | . 17 21 . 42 Haulers Intercepted 1 | . 1 . . . Recyclers Shooed . | . . . . . Parts Field Recycled . | . . . . . Retrieved Matter . | . . . . . Parts Self-Destructed . | . . . . . Prevented . | . . . . . Kills | -11 -10 -9 -8 -8 ------- Run | Yrd Mat Mat Mat Gar Combat Hostiles Destroyed 45 | . 7 14 . 24 Guns 40 | . 7 10 . 23 AOE 3 | . . 3 . . Classes Destroyed 6 | . 3 1 . 2 Hauler 1 | . 1 . . . Swarmer 22 | . 3 10 . 9 Grunt 18 | . 4 2 . 12 Brawler 2 | . . . . 2 Sentry 2 | . . 2 . . Programmer 1 | . . . . 1 Best Kill Streak 4 | . 2 4 . 4 Combat Bots Only 4 | . 2 4 . 4 Max Kills in Single Turn 3 | . 1 3 . 3 Gunslinging 1 | . . . . 1 Exploded 3 | . . 3 . . Melee . | . . . . . Uniques/NPCs Destroyed . | . . . . . Combat | -11 -10 -9 -8 -8 -------- Run | Yrd Mat Mat Mat Gar Hostile Shots Fired 299 | . 28 49 . 222 Missed 75 | . 10 13 . 52 Damage Taken 2990 | . 203 495 . 2292 Core 686 | . 44 89 . 553 Absorbed by Shields . | . . . . . Redirected to Shielding 11 | . . . . 11 Core Remaining (%) 86 | 100 82 77 . . Volleys Fired 148 | . 34 33 . 81 Largest 2 | . 2 2 . 2 Hottest 130 | . 80 80 . 130 Shots Fired 290 | . 66 64 . 160 Gun 285 | . 66 64 . 155 Cannon 5 | . . . . 5 Launcher . | . . . . . Special . | . . . . . Kinetic 12 | . 12 . . . Thermal 258 | . 54 62 . 142 Explosive . | . . . . . Electromagnetic 20 | . . 2 . 18 Robot Hit Streak 13 | . 12 13 . 12 Robot Miss Streak 7 | . 2 3 . 7 Penetration Max . | . . . . . Secondary Targets 9 | . . 1 . 8 Max Gunslinging Chain 1 | . . 1 . 1 Shots Hit Robots 189 | . 49 41 . 99 Core Hits 83 | . 19 19 . 45 Critical Kills . | . . . . . Critical Parts Destroyed . | . . . . . Critical Strikes 1 | . . . . 1 Burn 1 | . . . . 1 Melee Attacks . | . . . . . Impact . | . . . . . Slashing . | . . . . . Piercing . | . . . . . Sneak Attacks . | . . . . . Combat Hostiles . | . . . . . Follow-up Attacks . | . . . . . Damage Inflicted 2894 | . 522 667 9 1696 Guns 2638 | . 510 459 . 1669 Cannons 19 | . . . . 19 Explosions 192 | . . 192 . . Melee . | . . . . . Ramming 45 | . 12 16 9 8 Kinetic 68 | . 68 . . . Thermal 2334 | . 442 495 . 1397 Explosive . | . . . . . Electromagnetic 447 | . . 156 . 291 Impact . | . . . . . Slashing . | . . . . . Piercing . | . . . . . Highest Corruption 13 | . . . . 13 Average Corruption 10 | . . . . 10 Corruption Purged . | . . . . . Corruption Blocked . | . . . . . Effects 46 | . . . . 46 Message Errors 12 | . . . . 12 Matter Fused 6 | . . . . 6 Heat Flow Errors 3 | . . . . 3 Energy Discharges 5 | . . . . 5 Parts Rejected 2 | . . . . 2 Parts Fused 2 | . . . . 2 Data Loss (minor) 8 | . . . . 8 Data Loss (major) 2 | . . . . 2 Alerts 5 | . . . . 5 Weapon Failures 1 | . . . . 1 Overload Shots . | . . . . . Overflow Damage 30 | . . 30 . . Projectiles . | . . . . . Explosions 30 | . . 30 . . Melee . | . . . . . Knockbacks . | . . . . . Impact . | . . . . . Kinetic . | . . . . . Secondary . | . . . . . Self-Inflicted Damage 122 | . . 120 . 2 Shots 2 | . . 2 . . Rammed 1 | . . . . 1 Targets Rammed 14 | . 4 4 1 5 Kicked 13 | . 4 4 1 4 Crushed . | . . . . . Highest Temperature 632 | . 9 66 . 632 Average Temperature 113 | . 4 27 . 133 Received Heat Transfer 963 | . 90 72 . 801 Effects 17 | . . . . 17 Shutdowns 3 | . . . . 3 Energy Bleed 3 | . . . . 3 Interference 3 | . . . . 3 Matter Decay 4 | . . . . 4 Short Circuit 1 | . . . . 1 Damage (minor) 1 | . . . . 1 Damage (major) 2 | . . . . 2 Siege Activations . | . . . . . Robots Corrupted . | . . . . . Combat Hostiles . | . . . . . Parts Fried 1 | . . . . 1 Impact Corruptions . | . . . . . Robots Melted 2 | . . 1 . 1 Combat Hostiles 2 | . . 1 . 1 Parts Melted 11 | . . 5 . 6 Heat Transferred 5308 | . 1000 1050 . 3258 Parts Sabotaged . | . . . . . Parts Stolen . | . . . . . Parts Stripped . | . . . . . Power Chain Reactions . | . . . . . Alert | -11 -10 -9 -8 -8 ------- Run | Yrd Mat Mat Mat Gar Peak Influence 691 | . 187 466 133 691 Initial 118 | . . 12 118 86 Average 250 | . 56 232 118 395 Maximum Alert Level 2 | . . 2 . 2 Low Security (%) 45 | 100 100 29 100 11 Level 1 29 | . . 57 . 39 Level 2 25 | . . 13 . 49 Level 3 . | . . . . . Level 4 . | . . . . . Level 5 . | . . . . . High Security . | . . . . . Max Security . | . . . . . Squads Dispatched 2 | . 2 . . . Investigation 1 | . 1 . . . Extermination . | . . . . . Reinforcement 1 | . 1 . . . Assault . | . . . . . Garrison . | . . . . . Intercept . | . . . . . Searches Triggered . | . . . . . Construction Impeded . | . . . . . Haulers Reinforced . | . . . . . Active Scanning Responses . | . . . . . Cargo Convoy Interrupts . | . . . . . Stealth | -11 -10 -9 -8 -8 --------- Run | Yrd Mat Mat Mat Gar Distress Signals 3 | . 1 1 1 . Communications Jammed . | . . . . . Distress Signals . | . . . . . Times Spotted 67 | . 10 23 2 32 Peak Tracking Total 8 | . 3 7 6 8 Tactical Retreats 2 | . 2 . . . Traps | -11 -10 -9 -8 -8 ------- Run | Yrd Mat Mat Mat Gar Traps Triggered 5 | . 2 . . 3 Indirectly . | . . . . . Trap Hack Attempts . | . . . . . Triggered . | . . . . . Disarmed . | . . . . . Reprogrammed . | . . . . . Reused . | . . . . . Traps Extracted . | . . . . . Installed . | . . . . . Triggered . | . . . . . Machines | -11 -10 -9 -8 -8 ---------- Run | Yrd Mat Mat Mat Gar Machines Disabled 5 | . . 3 . 2 Max in Single Turn 2 | . . 2 . 1 Garrison Relay 2 | . . . . 2 Machines Repaired . | . . . . . Machines Dismantled . | . . . . . Machines Sabotaged . | . . . . . Overloaded Fab Kills . | . . . . . Hacking | -11 -10 -9 -8 -8 --------- Run | Yrd Mat Mat Mat Gar Machines Accessed 1 | . . . 1 . Terminals . | . . . . . Fabricators . | . . . . . Repair Stations . | . . . . . Recycling Units . | . . . . . Scanalyzers . | . . . . . Garrison Access 1 | . . . 1 . Total Hacks 1 | . . . 1 . Successful 1 | . . . 1 . Failed . | . . . . . Catastrophic . | . . . . . Database Lockouts . | . . . . . Manual . | . . . . . Terminals . | . . . . . Fabricators . | . . . . . Repair Stations . | . . . . . Recycling Units . | . . . . . Scanalyzers . | . . . . . Garrison Access 1 | . . . 1 . Terminal Hacks . | . . . . . Fabricator Hacks . | . . . . . Repair Station Hacks . | . . . . . Recycling Unit Hacks . | . . . . . Scanalyzer . | . . . . . Garrison Access Hacks 1 | . . . 1 . Unlock Access 1 | . . . 1 . Unauthorized Hacks . | . . . . . Terminals . | . . . . . Fabricators . | . . . . . Repair Stations . | . . . . . Recycling Units . | . . . . . Scanalyzers . | . . . . . Garrison Access . | . . . . . Data Cores Recovered . | . . . . . Used . | . . . . . Hacking Detections . | . . . . . Full Trace Events . | . . . . . Feedback Events . | . . . . . Feedback Blocked . | . . . . . Robot Schematics Acquired . | . . . . . Robots Built . | . . . . . Authchips . | . . . . . Time . | . . . . . Total Robot Build Rating . | . . . . . Part Schematics Acquired . | . . . . . Parts Built . | . . . . . Authchips . | . . . . . Time . | . . . . . Total Part Build Rating . | . . . . . Parts Repaired . | . . . . . Time . | . . . . . Parts Recycled . | . . . . . Recycled Matter . | . . . . . Retrieved Matter . | . . . . . Retrieved Components . | . . . . . Parts Scanalyzed . | . . . . . Part Schematics Acquired . | . . . . . Parts Damaged . | . . . . . Bothacking | -11 -10 -9 -8 -8 ------------ Run | Yrd Mat Mat Mat Gar Used RIF Installer . | . . . . . Robots Hacked . | . . . . . Non-combat . | . . . . . Combat . | . . . . . Robot Hacks Applied . | . . . . . Relay Couplers Released 9 | . . . . 9 Machine Destruction 6 | . . . . 6 Programmers 3 | . . . . 3 Fabnet Peak Effective % . | . . . . . Robots Rewired . | . . . . . Allies Hacked . | . . . . . Hacks Repelled . | . . . . . Allies | -11 -10 -9 -8 -8 -------- Run | Yrd Mat Mat Mat Gar Total Allies . | . . . . . Largest Group . | . . . . . Highest-Rated Group . | . . . . . Highest-Rated Ally . | . . . . . Total Orders . | . . . . . Ally Attacks . | . . . . . Total Damage . | . . . . . Kills . | . . . . . Allies Corrupted . | . . . . . Allies Melted . | . . . . . Intel | -11 -10 -9 -8 -8 ------- Run | Yrd Mat Mat Mat Gar Robot Analysis Total . | . . . . . Derelict Logs Recovered . | . . . . . Drone Launches . | . . . . . Drone Recoveries . | . . . . . Exploration | -11 -10 -9 -8 -8 ------------- Run | Yrd Mat Mat Mat Gar Turns Passed 2846 | 120 707 512 156 1351 Spaces Moved 1509 | 97 270 273 119 750 Core 25 | 23 . . . 2 Treads . | . . . . . Legs 1484 | 74 270 273 119 748 Wheels . | . . . . . Hover . | . . . . . Flight . | . . . . . Fastest Speed 50 | 50 120 120 120 50 Average Speed 119 | 112 120 120 120 119 Slowest Speed 120 | 120 120 120 120 120 Overloaded Moves . | . . . . . Propulsion Burnouts . | . . . . . Robots Hopped . | . . . . . Cave-ins Triggered . | . . . . . Exploration Rate (%) 25 | 4 38 35 5 46 Regions Visited 4 Branch Regions . Pre-discovered Areas . | . . . . . Known Exits Taken 1 | . . . 1 . Unknown Exits Taken 3 | 1 1 1 . . Scrap Searched . | . . . . . Spaces Dug . | . . . . . Terrain Destroyed 44 | . . 44 . . Melee . | . . . . . Projectile . | . . . . . AOE 44 | . . 44 . . Terrain Rammed . | . . . . . Walls Destroyed . | . . . . . Machines Disabled . | . . . . . Actions | -11 -10 -9 -8 -8 --------- Run | Yrd Mat Mat Mat Gar Total 2251 | 104 585 394 131 1037 Wait 498 | . 267 65 . 166 Move 1505 | 96 269 272 118 750 Hop . | . . . . . Pick Up 15 | 2 3 5 2 3 Fast Attach 18 | 6 3 2 1 6 Attach 16 | . 1 5 2 8 Detach 1 | . . 1 . . Swap 20 | . 4 3 4 9 Drop 13 | . . 4 3 6 Fire 148 | . 34 33 . 81 Melee . | . . . . . Ram 1 | . . . . 1 Kick 13 | . 4 4 1 4 Crush . | . . . . . Escape Stasis 3 | . . . . 3 Rewire . | . . . . . Trap . | . . . . . Miscellaneous . | . . . . . Route ------- -11/Scrapyard -10/Materials (discovered 2 exits: [*Mat] / [*Min]) -9/Materials (discovered 2 exits: *Mat / [*Min]) -8/Materials -8/Garrison (discovered 1 exit: [*Mat]) History --------- Turn | Location | Event 8 | -11/Scrapyard | Discovered new exit (range 15) 121 | -11/Scrapyard | Entered Materials 166 | -10/Materials | Discovered new exit (range 16) 306 | -10/Materials | Build established: Mutant 763 | -10/Materials | Discovered new exit (range 10) 828 | -10/Materials | Entered another Materials area 828 | -9/Materials | Evolved 2 slots: Propulsion x2 1048 | -9/Materials | Discovered new exit (range 7) 1137 | -9/Materials | Build established: Scavenger-Mutant 1325 | -9/Materials | Discovered new exit (range 10) 1340 | -9/Materials | Entered another Materials area 1340 | -8/Materials | Evolved 2 slots: Utility x2 1495 | -8/Materials | Identified exit to Garrison 1496 | -8/Materials | Entered Garrison 1520 | -8/Garrison | Triggered checkpoint 1573 | -8/Garrison | Garrison Relay disabled 1682 | -8/Garrison | Build established: Mutant 1908 | -8/Garrison | Triggered checkpoint 1990 | -8/Garrison | Triggered checkpoint 2062 | -8/Garrison | Triggered checkpoint 2172 | -8/Garrison | System corruption reached 10% 2278 | -8/Garrison | Triggered checkpoint 2505 | -8/Garrison | Build established: Scavenger-Mutant 2602 | -8/Garrison | Triggered checkpoint 2700 | -8/Garrison | Garrison Relay disabled 2733 | -8/Garrison | Discovered new exit (range 12) 2833 | -8/Garrison | Core integrity fell below 50% 2845 | -8/Garrison | Core integrity fell below 20% 2847 | -8/Garrison | Destroyed by S-10 Pest with Light Assault Rifle Last Messages --------------- 02818_ System corrupted: Imp. Heat Sink rejected. Garrison Door activated. 02818_ Aluminum Leg destroyed. 02819_ C-30 ARC bursts open, deploying its payload. 02822_ Sml. Storage Unit destroyed. 02822_ Lgt. Nuclear Core destroyed. 02829_ Overheating: Matter decay (-36). 02829_ S-10 Pest destroyed. 02830_ Particle Gun destroyed. 02834_ Aluminum Leg destroyed. 02837_ Kicked L-31 Rogue out of the way. 02838_ Aluminum Leg destroyed. 02838_ Lgt. EM Pulse Cannon destroyed. 02838_ Kicked S-10 Pest. 02839_ Aluminum Leg destroyed. 02839_ Kicked S-10 Pest. 02840_ Particle Gun destroyed. 02841_ Kicked S-10 Pest. 02842_ Imp. Carbon-fiber Leg destroyed. 02842_ Slammed into S-10 Pest. Map ----- +----------------------------------------------------+ | ?????????????????????????????????????????????????? | | ?????????????????????????????????????????????????? | | ?????????????????????????????????????????????????? | | ?????????????????????????????????????????????????? | | ?????????????????????????????????????????????????? | | ?????????????????????????????????????????????????? | | ?????????????????????????????????????????????????? | | ?????????????????????????????????????????????????? | | ?????????????????????????????????????????????????? | | ?????????????????????????????????????????????????? | | ????????????????????????? ??????????????????????? | | ????????????????????????? ??????????????????????? | | ????????????????????????# ??????????????????????? | | ????????????????????????T #?????????????????????? | | ????????????????????????# #?????????????????????? | | ????????????????????????# #?????????????????????? | | ?????????????????????##?# #?????????????????????? | | ?????????????????????#"## ##????????????????????? | | ??????????????????????" ????????????????????? | | ??????????????????????? ?????????????????????? | | ????????????????????????% ?????????????????????? | | ????????????????????????# #?????????????????????? | | ????????????????????????# #?????????????????????? | | ???????????# ########### g###########??????###### | | ???????????# sggs% #??????# | | ???????????# @[l![ #??????# | | ?????????????????######## ######## #??????# ### | | ????????????????????????# #??????# #??????# #?? | | ????????????????????????# g#??????# #??????# #?? | | ????????????????????????# #??????# #??????# #?? | | ????????????????????????# #??????# #??????# #?? | | ????????????????????????# #??????# ######## #?? | | ????????????????????????# #??????# ## ## #?? | | ????????????????????????# #?????## ## ## ##? | | ????????????????????????# ####### #? | | ????????????????????????# ^^ #? | | ????????????????????????# #? | | ????????????????????????########## ##^^^ ## #? | | ???????????????????????????????### ## ## ## | | ???????????????????????????????# | | ???????????????????????????????# | | ???????????????????????????????# | | ???????????????????????????????# * | | ???????????????????????????????### ## ##%= ## | | ???????????????????????????####### ## ## ## | | ??????????????????????????? [%[ | | ??????????????????????????? **% | | ??????????????????????????? % | | ????????????????????????????########### ####### | | ??????????????????????????????????????# ## #?? | +----------------------------------------------------+ Best States ------------- Heat Dissipation 45 Energy Generation 14 Energy Capacity 160 Matter Stores 300 Matter Capacity 300 Sight Range 16 Terrain Scan Density 10 Armor Coverage 225 Core Shielding 20 Evasion (%) 55 Targeting Accuracy 8 Item Schematics ----------------- None Robot Schematics ------------------ None Fabricated ------------ Nothing Alien Tech Used ----------------- None Achievements -------------- None Challenges ------------ None Game ------ Seed SuperchargedNodeLog Manual? 0 Play Time 00:20:34 Cumulative 83.4 hours Start 2024.04.11 @ 14:35:17 End 2024.04.11 @ 15:01:17 Sessions 1 Manual Loads 0 Difficulty Rogue Special Mode None Game No. 173 Rogue 173 Adventurer 0 Explorer 0 Win Type - Total 0 Types 0/0/0/0/0/0/0/0/0 Lore% 29 Gallery% 44 Achievement% 32 Wizard Run 0 Options --------- Layout 0 ASCII 0 Keyboard 1 Movement Numpad Keybinds 0 Fullscreen 1 Font 24/Terminus Map View 76x50 Zoom Use 0% Tactical HUD 1 Map Filters NONE Filters NONE Steam 1 RUN: 370ef780-0283-48d6-8614-89d534366d12